{"text_format":"3","workbook":"xlsx","n_sheets":4,"sheets":["Liste des achats","Répartition budgétaire","Liste de tâches","Liste de partage"],"not_rendered":{"charts":2,"images":2,"defined_names":12},"read":"whole","date_system":"1900"}

{"sheet":"Liste des achats","index":0,"n_rows":25,"n_cols":8,"rows_kept":25,"merged":[[0,1,0,2],[2,1,2,7],[3,1,3,2],[4,4,6,7]]}
[null,"Rentrée des classes",null,"Planificateur"]
[]
[null,"Suivez l’avancement de vos achats par rapport à des montants de budget saisis dans Répartition budgétaire."]
[null,"Résumé du budget",null,null,{"$f":"\"Progression des achats (\"&COUNTIFS(Liste_de_contrôle[Acheté], \">0\")&\" sur \"&COUNTIFS(Liste_de_contrôle[À acheter], \">0\")&\")\"","v":"Progression des achats (1 sur 6)"}]
[null,"Budgétisation",{"v":1500,"d":"1,500.00 €"},null,{"$f":"IFERROR(COUNTIFS(Liste_de_contrôle[À acheter],\">0\",Liste_de_contrôle[Acheté],\">0\")/SommesArticlesRequis,0)","v":{"v":0.16666666666666666,"d":"17%"}}]
[null,"Total de la liste des achats",{"$f":"IFERROR(SUM(TotalListeContrôle), \"\")","v":{"v":365,"d":"365.00 €"}}]
[null,"Solde disponible",{"$f":"IFERROR(C5-C6, \"\")","v":{"v":1135,"d":"1,135.00 €"}}]
[null,"Liste des achats"]
[null,"Article","Catégorie","Qté","À acheter","Coût","Acheté","Coût total"]
[null,"Mathématiques","Manuels scolaires",1,1,{"v":55,"d":"55.00 €"},1,{"$f":"IFERROR(Liste_de_contrôle[Qté]*Liste_de_contrôle[Coût], \"\")","v":{"v":55,"d":"55.00 €"}}]
[null,"Anglais","Manuels scolaires",1,1,null,null,{"$f":"IFERROR(Liste_de_contrôle[Qté]*Liste_de_contrôle[Coût], \"\")","v":0}]
[null,"Sac à dos","Fournitures",1,null,{"v":30,"d":"30.00 €"},null,{"$f":"IFERROR(Liste_de_contrôle[Qté]*Liste_de_contrôle[Coût], \"\")","v":{"v":30,"d":"30.00 €"}}]
[null,"Calculatrice","Fournitures",1,{"$nulls":3},{"$f":"IFERROR(Liste_de_contrôle[Qté]*Liste_de_contrôle[Coût], \"\")","v":0}]
[null,"Surligneurs","Fournitures",3,{"$nulls":3},{"$f":"IFERROR(Liste_de_contrôle[Qté]*Liste_de_contrôle[Coût], \"\")","v":0}]
[null,"Uniforme","Vêtements",2,1,{"v":100,"d":"100.00 €"},null,{"$f":"IFERROR(Liste_de_contrôle[Qté]*Liste_de_contrôle[Coût], \"\")","v":{"v":200,"d":"200.00 €"}}]
[null,"Chemise","Vêtements",4,{"$nulls":3},{"$f":"IFERROR(Liste_de_contrôle[Qté]*Liste_de_contrôle[Coût], \"\")","v":0}]
[null,"Tee-shirts","Vêtements",5,{"$nulls":3},{"$f":"IFERROR(Liste_de_contrôle[Qté]*Liste_de_contrôle[Coût], \"\")","v":0}]
[null,"Shorts","Vêtements",2,{"$nulls":3},{"$f":"IFERROR(Liste_de_contrôle[Qté]*Liste_de_contrôle[Coût], \"\")","v":0}]
[null,"Chaussures de sport","Vêtements",2,1,null,null,{"$f":"IFERROR(Liste_de_contrôle[Qté]*Liste_de_contrôle[Coût], \"\")","v":0}]
[null,"Chaussettes","Vêtements",10,{"$nulls":3},{"$f":"IFERROR(Liste_de_contrôle[Qté]*Liste_de_contrôle[Coût], \"\")","v":0}]
[null,"Veste légère","Vêtements",1,1,{"v":80,"d":"80.00 €"},null,{"$f":"IFERROR(Liste_de_contrôle[Qté]*Liste_de_contrôle[Coût], \"\")","v":{"v":80,"d":"80.00 €"}}]
[null,"Pulls","Vêtements",1,{"$nulls":3},{"$f":"IFERROR(Liste_de_contrôle[Qté]*Liste_de_contrôle[Coût], \"\")","v":0}]
[null,"Sweatshirts","Vêtements",1,{"$nulls":3},{"$f":"IFERROR(Liste_de_contrôle[Qté]*Liste_de_contrôle[Coût], \"\")","v":0}]
[null,"Sous-vêtements","Vêtements",10,{"$nulls":3},{"$f":"IFERROR(Liste_de_contrôle[Qté]*Liste_de_contrôle[Coût], \"\")","v":0}]
[null,"Veste d’hiver","Vêtements",1,1,null,null,{"$f":"IFERROR(Liste_de_contrôle[Qté]*Liste_de_contrôle[Coût], \"\")","v":0}]

{"sheet":"Répartition budgétaire","index":1,"n_rows":6,"n_cols":3,"rows_kept":6}
[null,"Répartition budgétaire"]
[null,"Ajoutez des catégories et des montants budgétaires à suivre dans votre liste des achats."]
[null,"Catégorie","Coût total"]
[null,"Vêtements",{"$f":"IFERROR(SUMIFS(Liste_de_contrôle[Coût total],Liste_de_contrôle[Catégorie],Catégorie[Catégorie]), \"\")","v":{"v":280,"d":"280.00 €"}}]
[null,"Fournitures",{"$f":"IFERROR(SUMIFS(Liste_de_contrôle[Coût total],Liste_de_contrôle[Catégorie],Catégorie[Catégorie]), \"\")","v":{"v":30,"d":"30.00 €"}}]
[null,"Manuels scolaires",{"$f":"IFERROR(SUMIFS(Liste_de_contrôle[Coût total],Liste_de_contrôle[Catégorie],Catégorie[Catégorie]), \"\")","v":{"v":55,"d":"55.00 €"}}]

{"sheet":"Liste de tâches","index":2,"n_rows":22,"n_cols":3,"rows_kept":22}
[null,"Liste de tâches"]
[null,"Effectuez le suivi de toutes les activités dont vous avez besoin avant la rentrée scolaire."]
[null,"OK","Tâche"]
[null,"x","Remplir toutes les fiches d’inscription"]
[null,null,"Prévoir une visite de l’école et un examen visuel si nécessaire"]
[null,null,"Vérifier la liste des vaccinations obligatoires"]
[null,null,"Demander une ordonnance détaillée des médicaments au médecin traitant"]
[null,null,"Revoir le code vestimentaire de l’école"]
[null,null,"Obtenir la liste des fournitures scolaires"]
[null,null,"Prendre rendez-vous avec l’enseignant"]
[null,null,"Déterminer le mode de communication favori du professeur (téléphone, e-mail, correspondance écrite)"]
[null,null,"Visite guidée de l’établissement avec votre enfant"]
[null,null,"Aider votre enfant à mémoriser votre numéro de téléphone personnel, votre numéro de téléphone professionnel et votre adresse personnelle"]
[null,null,"Prévoir le mode de transport, désigner un lieu de regroupement sûr et tester plusieurs fois"]
[null,null,"Si votre enfant se rend à l’école à pied, emprunter le parcours avec lui plusieurs fois "]
[null,null,"En cas de covoiturage, présenter votre enfant à tous les conducteurs"]
[null,null,"En cas de transport en bus, déterminer les horaires et les arrêts"]
[null,null,"Prévoir la garde de votre enfant après l’école"]
[null,null,"Planifier un menu pour le petit déjeuner, les goûters du matin et de l’après-midi, les déjeuners conditionnés"]
[null,null,"Déterminer le lieu et le planning des devoirs"]
[null,null,"Mettre en place les horaires du coucher au moins deux semaines avant la rentrée scolaire"]
[null,null,"Préparer un calendrier de tous les événements et activités scolaires"]

{"sheet":"Liste de partage","index":3,"n_rows":4,"n_cols":5,"rows_kept":4}
[null,"Liste de partage",null,null,"Partagez cette liste avec d’autres personnes pour leur permettre de contribuer. Sélectionnez Partager dans l’angle supérieur droit ou appuyez sur ALT et sur YU. Enregistrez le fichier sur OneDrive et envoyez le lien à vos amis."]
[null,"Nom","E-mail","Partagé ?"]
[null,"Personne 1","personne@email.com","Oui"]
[null,"Personne 2","personne@email.com","Non"]